{"text_format":"1","workbook":"xlsx","n_sheets":1,"sheets":["Modulo_Ordine"],"not_rendered":{"charts":0,"images":2,"macros":1,"external_links":0,"defined_names":5,"comments":0,"pivot_tables":0},"unopened":[],"bounds":{"document_bytes":16777216,"sheet_cells":100000,"rows_first":2000,"rows_last":500,"rows_between":2000,"halvings":0,"cell_chars":16384,"cell_head_chars":4096},"cells_cut":0,"cells_raw":0,"read":"whole","date_system":"1900"}

{"sheet":"Modulo_Ordine","index":0,"n_rows":56,"n_cols":17,"rows_kept":56,"cut":false,"hidden":false,"merged":[[10,15,10,16],[0,1,0,2],[1,1,1,2],[0,5,0,16],[6,3,6,14],[7,3,7,14],[8,3,8,14],[9,3,9,14],[3,16,4,16],[1,15,1,16],[5,4,5,14],[2,1,2,2],[3,1,3,2],[4,1,4,2],[6,1,6,2],[7,1,7,2],[52,0,52,16],[53,0,53,16],[54,0,54,16],[55,0,55,16],[28,0,28,16],[48,0,48,16],[47,0,47,16],[49,0,49,16],[50,0,50,16],[51,0,51,16],[32,0,32,16],[33,0,33,16],[34,0,34,16],[35,0,35,16],[36,0,36,16],[37,0,37,16],[8,1,8,2],[9,1,9,2],[10,1,10,2],[14,1,14,2],[15,1,15,2],[11,1,12,14],[10,3,10,14],[26,1,26,2],[27,1,27,2],[13,1,13,2],[31,0,31,16],[29,0,29,16],[21,1,21,2],[22,1,22,2],[23,1,23,2],[24,1,24,2],[25,1,25,2],[16,1,16,2],[17,1,17,2],[18,1,18,2],[19,1,19,2],[20,1,20,2],[43,0,43,16],[44,0,44,16],[45,0,45,16],[46,0,46,16],[38,0,38,16],[39,0,39,16],[40,0,40,16],[41,0,41,16],[42,0,42,16]]}
["NR. ISCRIZIONE*",null,null,null,null,"MODULO ORDINE - DIVISA NAZIONALE A.M.S.I - I/20-21"]
["COGNOME NOME*",null,null,null,null,null,null,null,null,null,null,null,null,null,null,"Tot. IVA esclusa"]
["INDIRIZZO*",null,null,null,null,null,null,null,null,null,null,null,null,null,null,null,{"$f":"IF(SUM($Q$15:$Q$28)=0,\"\",SUM($Q$15:$Q$28))","v":""}]
["CAP - CITTA' - PR.*",null,null,null,null,null,null,null,null,null,null,null,null,null,null," ","Diritto contrassegno"]
["DESTINAZ. MERCE*",null,null,null,null,null,null,null,null,null,null,null,null,null,null," "]
["P. IVA/CODICE FAT. E. ",null,null,null,"                            Fornitore ufficiale A.M.S.I.",null,null,null,null,null,null,null,null,null,null,null,{"$f":"IF($Q$3=\"\",\" \",ROUND(IF($Q$3 < 200,3.2,($Q$3*1.22)*0.017),2))","v":" "}]
["CODICE FISCALE*",null,null,"Distribuito da:"]
["TEL. - CELLULARE*",null,null,"CLUSONE COMPANY SRL",null,null,null,null,null,null,null,null,null,null,null,null,"IVA 22%"]
["EMAIL - PEC*",null,null,"VIA BRESCIA, 3 - 24023 CLUSONE (BG)",null,null,null,null,null,null,null,null,null,null,null,null,{"$f":"IF($Q$3=\"\",\"\",ROUND(($Q$3+$Q$6)*0.22,2))","v":""}]
["DATA ORDINE*",null,null,"TEL. 0346-25960  -  FAX 0346-460234  -  EMAIL: info@clco.it"]
["NOTE",null,null,"P.IVA - COD. FISCALE: 02060410160",null,null,null,null,null,null,null,null,null,null,null,"  TOTALE DA PAGARE"]
["CLAUSOLE","Ultima data ordine: entro il 27 aprile 2020. Trasporto e assicurazione: a carico del venditore. Pagamento: in contrassegno al corriere con denaro contante o assegno circolare. Per gli importi uguali o superiori ad Euro 3.000- sarà possibile solo l'assegno circolare. Il diritto di contrassegno è a carico dell'acquirente. Spedizione: a mezzo corriere GLS entro la data ultima prevista del 30 novembre 2020. Per spedizioni a Livigno e S. Marino ci sarà un concorso di spese di Euro 40-.",null,null,null,null,null,null,null,null,null,null,null,null,null," ",{"$f":"IF($Q$3=\"\",\"\",($Q$3+$Q$6+$Q$9))","v":""}]
["(*) campi obbligatori"]
["CODICE","DESCRIZIONE",null,"PREZZO \n(IVA esclusa)","40","42","44","46","48","50","52","54","56","58","60","TOT. Q.TA'","TOT. EURO"]
["S1-8680AMLP - 60","GIACCA SCI UOMO - ROYAL/BIANCO - Libero professionista",null,275,"-","-",null,null,null,null,null,null,null,null,null,{"$f":"SUM($E15:$O15)","v":0},{"$f":"IF($P15=0,\" \",$D15*$P15)","v":" "}]
["S1-9680AMLP - 60","GIACCA SCI DONNA - ROYAL/BIANCO - Libero professionista",null,275,null,null,null,null,null,"-","-","-","-","-","-",{"$f":"SUM($E16:$O16)","v":0},{"$f":"IF($P16=0,\" \",$D16*$P16)","v":" "}]
["S1-8179AM-S - 60","PANTALONI SCI - ROYAL/BIANCO - SHORT (-5 CM.)",null,195,null,null,null,null,null,null,null,null,null,null,null,0," "]
["S1-8179AM-R - 60 ","PANTALONI SCI - ROYAL/BIANCO - REGULAR",null,195,null,null,null,null,null,null,null,null,null,null,null,{"$f":"SUM($E18:$O18)","v":0}," "]
["S1-8179AM-L - 60","PANTALONI SCI - ROYAL/BIANCO - LONG (+5 CM.)",null,195,null,null,null,null,null,null,null,null,null,null,null,0," "]
["S1-8184AM-S - 60","PANTALONI SCI COMFORT - ROYAL/BIANCO - SHORT (-5 CM.)",null,195,null,null,null,null,null,null,null,null,null,null,null,0," "]
["S1-8184AM-R - 60","PANTALONI SCI COMFORT - ROYAL/BIANCO - REGULAR",null,195,null,null,null,null,null,null,null,null,null,null,null,0," "]
["S1-8184AM-L - 60","PANTALONI SCI COMFORT - ROYAL/BIANCO - LONG (+5 CM.)",null,195,null,null,null,null,null,null,null,null,null,null,null,0," "]
["S1-8381AM - 60","GIACCA LEGGERA IN \"PRIMALOFT\" - ROYAL/BIANCO",null,129,null,null,null,null,null,null,null,null,null,null,null,0," "]
["S1-0423AM - 60","SOTTOTUTA DA SCI - ROYAL",null,49,null,null,null,null,null,null,null,null,null,null,null,0," "]
[" "," ",null," ",null,"XXS","XS","S","M","L","XL","XXL","3XL"]
["S1-9998AM- 60","MAGLIONE ZIP CORTA LANA MERINO E PRIMALOFT - ROYAL/BIANCO",null,79,"-",null,null,null,null,null,null,null,null,"-","-",0," "]
["S1-9998AM-R- 60","MAGLIONE ZIP CORTA LANA MERINO E PRIM. + RICAMO - ROYAL/BIANCO",null,84,"-",null,null,null,null,null,null,null,null,"-","-",0," "]
["S1-9999AM - 60","MANTELLA SCI - ROYAL",null,100,"-",null,null,null,null,null,null,null,"-","-","-",{"$f":"SUM($E28:$O28)","v":0},{"$f":"IF($P28=0,\" \",$D28*$P28)","v":" "}]
["Seguono le condizioni generali di vendita"]
["Caratteristiche tecniche del tessuto Dobby Ox-Dermizax: impermeabilità 20.000 mm H2O, traspirabilità 20.000 g/mq/24h."]
[]
["CONDIZIONI GENERALI DI VENDITA"]
["1. Il presente contratto, può essere sottoposto a rettifica da parte del venditore a mezzo comunicazione scritta."]
["2. L’esecuzione del presente contratto è subordinata alla clausola “Impedimento di forza maggiore”."]
["3. Il destinatario della merce all’atto della consegna ha l’obbligo di controllare l’integrità degli imballi ed in caso di danneggiamento ha l’obbligo di apporre riserva scritta sulla lettera di vettura del trasportatore che ha  effettuato la consegna, poiché diversamente il venditore non accrediterà il valore della merce mancante o danneggiata. "]
["4. Qualsiasi contestazione o reclamo in ordine all’esecuzione del presente contratto o ad eventuali vizi della fornitura dovrà essere comunicato in forma scritta con raccomandata A.R. o altro mezzo che ne comprovi la ricezione, entro il termine di 8 giorni dalla data di ricevimento della merce."]
["5. Non sono accettati resi di merce quando il prodotto sia stato modificato dall’acquirente."]
["6. Eventuali restituzioni saranno accettate solo se autorizzate in forma scritta. L’eventuale accredito o sostituzione della merce resa, sarà valutato dal venditore al ricevimento della merce. Non saranno per nessun motivo accettati resi trascorsi 10 (dieci) giorni dalla data di comunicazione di vizio o difformità. Le spese di spedizione del reso saranno a carico dell'acquirente mentre quelle d'invio dell'eventuale sostituzione saranno a carico del venditore."]
["7. Nel caso di ritardo nella consegna verranno riconosciuti i seguenti sconti: 10 gg. di ritardo sconto 5%, tra i 10  ed i 20 gg. di ritardo sconto 10%."]
["8. E’ facoltà del venditore sospendere od annullare gli ordini in corso qualora, a Suo insindacabile giudizio, non sussistano garanzie di solvibilità dell’acquirente o esista una situazione d’insolvenza."]
["9. I pagamenti dovranno sempre essere effettuati in contrassegno con assegno circolare o denaro contante. Per gli importi uguali o superiori al limite di legge previsto per l'utilizzo di denaro contante,- sarà possibile solo l'assegno circolare. Non saranno accettate altre forme di pagamento."]
["10. Per le spedizioni a Livigno e S. Marino ci sarà un concorso di spese di Euro 40-."]
["11. In merito allo scudetto circolare AMSI al petto sinistro, Vi consigliamo di utilizzare un velcro morbido e con misure non superiori ai 7 cm di diametro."]
["12. Le stesse condizioni di vendita regoleranno anche gli eventuali riordini."]
["13. Con l'accettazione del presente ordine si autorizza l'invio delle fatture a mezzo posta elettronica all'indirizzo indicato nella testata del presente ordine."]
["14. Per ogni controversia comunque connessa con l’esecuzione del presente contratto, è competente esclusivamente il Foro del Tribunale di Bergamo."]
["                                                          Data                                                                                                                                                                                                                          Timbro e firma dell'acquirente"]
["                                          ___________________                                                                                                                                                                                                _______________________________________"]
[]
["Dichiaro di aver letto ed accettato tutte le condizioni generali di vendita sopra riportate. In particolare approvo specificatamente, ai sensi dell’articolo 1341 del Codice Civile, le clausole numero 1, 2, 3, 4, 5, 6, 7, 8, 9, 10, 11, 12, 13, 14."]
["                                                          Data                                                                                                                                                                                                                         Timbro e firma dell'acquirente"]
["                                          ___________________                                                                                                                                                                                                _______________________________________"]
[]
["Dichiarazione di consenso ai sensi della legge 31/12/1996 Nr. 675"]
["I dati in nostro possesso (dati anagrafici e fiscali nonché dati di natura economica) sono utilizzati esclusivamente per il regolare svolgimento delle attività commerciali ed amministrative in essere o future. Non siamo in possesso di alcun Vostro dato qualificabile come sensibile (art. 4 lettera d) o giudiziario (art. 4 lettera e). I Vostri dati vengono trattati per finalità amministrative e commerciali. In ogni momento potrà esercitare i Suoi diritti ai sensi dell’art. 7,8,9 e 10 del D.lgs. 196/2003. Per non ricevere altre comunicazioni di questa tipologia potete comunicarlo a mezzo fax al nr. 0346-460234 o tramite email all’indirizzo info@clco.it."]
["I dati in nostro possesso (dati anagrafici e fiscali nonché dati di natura economica) sono utilizzati esclusivamente per il regolare svolgimento delle attività commerciali ed amministrative in essere o future. Non siamo in possesso di alcun Vostro dato qualificabile come sensibile (art. 4 lettera d) o giudiziario (art. 4 lettera e). I Vostri dati vengono trattati per finalità amministrative e commerciali. In ogni momento potrà esercitare i Suoi diritti ai sensi dell’art. 7,8,9 e 10 del D.lgs. 196/2003. Per non ricevere altre comunicazioni di questa tipologia potete comunicarlo a mezzo fax al nr. 0346-460234 o tramite email all’indirizzo info@clco.it."]